bitfinex-derivatives/quotes_SOLF0:USTF0_20241230
["timestamp","ask_amount","ask_price","bid_price","bid_amount"]
[1735538793092,8.40480064,191.57,191.52,4.06266069]
[1735538793292,8.40480064,191.57,191.53,4.06266069]
[1735538793493,11.02040064,191.57,191.54,4.06326439]
[1735538793693,11.02040064,191.57,191.53,2.6161]
[1735538793993,11.02040064,191.57,191.54,4.06341535]
[1735538794193,11.02040064,191.57,191.53,2.6161]
[1735538795304,11.02040064,191.57,191.54,4.06398513]
[1735538795503,8.40480064,191.57,191.54,2.6159]
[1735538796398,8.40480064,191.59,191.52,8.40480064]
[1735538796589,11.02010064,191.59,191.53,4.06282023]
[1735538796794,11.02010064,191.59,191.54,4.06282023]
[1735538797002,11.02010064,191.59,191.55,4.06282023]
[1735538797298,8.40480064,191.59,191.56,6.67739253]
[1735538797489,8.40480064,191.59,191.56,2.6157]
[1735538798089,8.40480064,191.59,191.54,2.6159]
[1735538799195,2.6155,191.58,191.54,2.6159]
[1735538799904,8.40480064,191.59,191.54,2.6159]
[1735538800091,8.40480064,191.57,191.5,11.54130064]
[1735538800398,8.40480064,191.57,191.51,4.06162893]
[1735538800600,8.40480064,191.57,191.52,4.06162893]
[1735538800801,2.6158,191.56,191.53,4.06162893]
[1735538801003,2.6158,191.56,191.54,4.06162893]
[1735538801300,2.6158,191.56,191.52,2.6162]
[1735538801691,2.6158,191.56,191.53,4.06139688]
[1735538801897,8.40480064,191.55,191.48,3.0]
[1735538802097,8.40480064,191.53,191.49,4.06276813]
[1735538802298,8.40480064,191.53,191.5,4.06276813]
[1735538802591,8.40480064,191.53,191.45,11.57940064]
[1735538802792,8.40480064,191.46,191.44,7.20566968]
[1735538803398,11.02170064,191.48,191.43,2.6174]
[1735538803589,8.40480064,191.48,191.41,8.40480064]
[1735538803796,8.40480064,191.48,191.42,4.06493847]
[1735538804100,8.40480064,191.48,191.44,2.6172]
[1735538805699,8.40480064,191.46,191.41,8.40480064]
[1735538805894,8.40480064,191.46,191.43,2.6175]
[1735538806303,8.40480064,191.44,191.39,2.6179]
[1735538806907,2.6168,191.49,191.44,2.6173]
[1735538807103,8.40480064,191.46,191.4,8.40480064]
[1735538807301,8.40480064,191.48,191.41,4.05886402]
[1735538807502,8.40480064,191.48,191.4,8.40480064]
[1735538807705,8.40480064,191.48,191.44,2.6172]
[1735538808603,8.40480064,191.48,191.45,2.6172]
[1735538810308,8.40480064,191.48,191.4,8.40480064]
[1735538810508,8.40480064,191.48,191.44,2.6173]
[1735538814514,2.6167,191.49,191.44,2.6173]
[1735538814713,8.40480064,191.48,191.44,2.6173]
[1735538814912,11.02160064,191.48,191.44,2.6173]
[1735538815105,11.02160064,191.48,191.4,8.40480064]
[1735538815414,11.02160064,191.48,191.43,2.6175]
[1735538816714,8.40480064,191.48,191.45,2.6172]
[1735538816907,8.40480064,191.5,191.42,8.40480064]
[1735538817112,8.40480064,191.5,191.43,4.05107226]
[1735538817308,8.40480064,191.5,191.42,8.40480064]
[1735538817512,8.40480064,191.5,191.46,2.617]
[1735538817712,1.6029,191.52,191.44,8.40480064]
[1735538818013,8.40480064,191.52,191.5,2.6165]
[1735538818315,8.40480064,191.52,191.44,1.5397]
[1735538818714,8.40480064,191.52,191.45,8.40480064]
[1735538819309,8.40480064,191.52,191.48,2.6167]
[1735538820216,8.40480064,191.52,191.49,2.6166]
[1735538820918,8.40480064,191.52,191.5,2.6165]
[1735538821114,8.40480064,191.54,191.47,8.40480064]
[1735538821711,8.40480064,191.54,191.51,2.6163]
[1735538822415,8.40480064,191.54,191.5,2.6165]
[1735538823419,8.40480064,191.52,191.48,2.6167]
[1735538823717,8.40480064,191.5,191.44,1.5397]
[1735538823907,2.617,191.47,191.45,4.05378806]
[1735538824107,2.617,191.47,191.43,1.5423]
[1735538824511,2.617,191.47,191.42,2.6176]
[1735538824713,2.6172,191.45,191.41,2.6177]
[1735538824914,2.6172,191.45,191.42,4.05688275]
[1735538825117,8.40480064,191.46,191.41,2.6177]
[1735538825311,11.02190064,191.46,191.42,2.6176]
[1735538826319,11.02190064,191.46,191.39,12.96030064]
[1735538826514,11.02190064,191.46,191.4,6.67423482]
[1735538826715,2.6172,191.45,191.41,4.05643482]
[1735538826917,2.6172,191.45,191.39,4.5555]
[1735538827217,2.6172,191.45,191.4,4.05643871]
[1735538827521,2.6172,191.45,191.41,4.05643871]
[1735538827714,2.6172,191.45,191.39,9.96030064]
[1735538827916,2.6172,191.45,191.4,4.0567531]
[1735538828112,8.40480064,191.42,191.41,4.0567531]
[1735538828314,8.40480064,191.42,191.37,3.0]
[1735538828510,8.40480064,191.42,191.34,42.40036946]
[1735538828713,3.0,191.47,191.35,4.05787892]
[1735538829015,8.40480064,191.42,191.36,12.46267956]
[1735538829212,2.618,191.39,191.34,42.40036946]
[1735538829414,2.618,191.39,191.35,4.05768702]
[1735538829610,2.618,191.39,191.34,42.40036946]
[1735538829813,2.618,191.39,191.35,4.05594246]
[1735538830018,2.618,191.39,191.34,45.01896946]
[1735538830218,8.40480064,191.4,191.34,33.99556882]
[1735538830416,2.6183,191.38,191.34,33.99556882]
[1735538831423,8.40480064,191.42,191.35,8.40480064]
[1735538831619,8.40480064,191.44,191.37,8.40480064]
[1735538831811,8.40480064,191.44,191.41,2.6177]
[1735538832016,8.40480064,191.46,191.39,8.40480064]
[1735538832724,8.40480064,191.46,191.4,4.04974668]
[1735538832923,8.40480064,191.46,191.39,8.40480064]
[1735538833514,11.02190064,191.46,191.41,2.6177]
[1735538833719,8.40480064,191.46,191.38,8.40480064]
[1735538833922,8.40480064,191.46,191.39,4.05131322]
[1735538834119,8.40480064,191.46,191.4,2.6179]
[1735538834422,16.12987644,191.49,191.4,2.6179]
[1735538835020,16.12987644,191.49,191.41,2.6177]
[1735538835221,16.12987644,191.49,191.39,2.982]
[1735538835522,2.6171,191.47,191.42,2.6176]
[1735538835724,16.12987644,191.49,191.42,2.6176]
[1735538836722,2.6171,191.46,191.41,2.6177]
[1735538837722,2.6172,191.45,191.41,2.6177]
[1735538838021,13.12987644,191.49,191.39,2.982]
[1735538838221,13.12987644,191.49,191.42,2.6176]
[1735538838815,2.6171,191.46,191.42,2.6176]
[1735538840726,2.6174,191.44,191.4,2.6178]
[1735538840925,13.12987644,191.49,191.41,4.05898574]
[1735538841129,13.12987644,191.49,191.39,2.982]
[1735538841328,13.12987644,191.49,191.4,4.05882194]
[1735538841528,13.12987644,191.49,191.41,4.05882194]
[1735538841725,13.12987644,191.49,191.39,2.982]
[1735538842031,13.12987644,191.49,191.4,4.06020879]
[1735538842224,13.12987644,191.49,191.41,4.06020879]
[1735538842523,13.12987644,191.49,191.42,4.06020879]
[1735538842728,2.617,191.47,191.39,2.982]
[1735538842929,2.617,191.47,191.4,4.06124271]
[1735538843128,2.617,191.47,191.42,2.6175]
[1735538843321,2.6167,191.49,191.43,4.06307222]
[1735538843523,3.0324,191.55,191.44,4.06258804]
[1735538843524,14.65667644,191.55,191.44,4.06258804]
[1735538843722,13.12987644,191.55,191.45,4.06258804]
[1735538843930,15.74577644,191.55,191.46,4.06258804]
[1735538844130,15.74577644,191.55,191.47,4.06258804]
[1735538844332,15.74577644,191.55,191.48,4.06258804]
[1735538844534,2.6161,191.53,191.49,6.67918804]
[1735538844738,2.6161,191.53,191.48,3.0]
[1735538845025,13.12987644,191.55,191.48,3.0]
[1735538845435,13.12987644,191.55,191.44,16.12987644]
[1735538845630,13.12987644,191.55,191.45,4.06315221]
[1735538845830,13.12987644,191.55,191.46,4.06315221]
[1735538846030,2.6161,191.54,191.49,2.6166]
[1735538846231,1.5941,191.57,191.44,16.12987644]
[1735538846432,1.5941,191.57,191.47,13.12987644]
[1735538846632,13.12987644,191.58,191.54,2.616]
[1735538846835,16.28557644,191.61,191.54,2.616]
[1735538847337,2.6154,191.58,191.53,2.6161]
[1735538848433,2.6152,191.6,191.49,3.0]
[1735538848637,2.6152,191.6,191.5,4.05991059]
[1735538848837,2.6152,191.6,191.51,4.05991059]
[1735538849041,2.6153,191.59,191.54,2.6159]
[1735538849239,1.5671,191.62,191.5,13.12987644]
[1735538849446,1.5671,191.62,191.51,4.06026811]
[1735538849638,2.6151,191.61,191.56,2.6156]
[1735538849840,1.5671,191.62,191.56,2.6156]
[1735538850139,2.6156,191.57,191.48,3.0662]
[1735538850337,13.12987644,191.61,191.49,7.06060351]
[1735538850535,16.12987644,191.61,191.5,4.06060351]
[1735538850731,2.6157,191.57,191.51,2.6163]
[1735538850936,13.12987644,191.58,191.51,2.6163]
[1735538851136,13.12987644,191.55,191.44,13.12987644]
[1735538851336,13.12987644,191.55,191.45,7.06066815]
[1735538851541,1.5852,191.54,191.46,4.06066815]
[1735538851733,1.5852,191.54,191.45,3.0]
[1735538851931,1.5852,191.54,191.46,4.06203876]
[1735538852140,2.6165,191.5,191.45,3.0]
[1735538852342,2.6165,191.5,191.43,5.9422]
[1735538852532,2.6165,191.5,191.44,4.06333963]
[1735538852731,2.6165,191.5,191.43,5.9422]
[1735538852937,2.6165,191.5,191.44,4.06298168]
[1735538853137,2.6165,191.5,191.43,5.9422]
[1735538853338,2.6165,191.5,191.44,4.06343402]
[1735538853538,2.6165,191.5,191.45,6.68063402]
[1735538853738,2.6165,191.5,191.45,2.6172]
[1735538856837,13.12987644,191.52,191.43,8.5596]
[1735538856838,2.6168,191.49,191.43,8.5596]
[1735538857042,2.6168,191.49,191.44,4.06337119]
[1735538857340,2.6168,191.49,191.43,2.9422]
[1735538857538,2.6168,191.49,191.45,2.6172]
[1735538858647,13.12987644,191.52,191.43,2.9422]
[1735538858946,1.5852,191.54,191.44,4.06180999]
[1735538859146,1.5852,191.54,191.45,4.06180999]
[1735538859350,1.5852,191.54,191.46,4.06180999]
[1735538859543,1.5852,191.54,191.47,4.06180999]
[1735538859847,1.493,191.57,191.5,2.6165]
[1735538860547,13.12987644,191.58,191.51,2.6164]
[1735538861535,2.6157,191.56,191.51,2.6164]
[1735538861940,13.12987644,191.58,191.51,2.6164]
[1735538862243,13.12987644,191.58,191.5,2.6165]
[1735538862635,13.12987644,191.58,191.47,3.02]
[1735538862849,13.12987644,191.53,191.47,3.02]
[1735538863340,13.12987644,191.53,191.45,2.6172]
[1735538863548,1.4967,191.52,191.45,2.6172]
[1735538863745,2.6167,191.49,191.45,2.6172]
[1735538863944,1.4967,191.52,191.38,1.4768]
[1735538863945,13.12987644,191.47,191.38,4.4968]
[1735538864147,13.12987644,191.47,191.39,4.06327957]
[1735538864348,13.12987644,191.47,191.4,4.06327957]
[1735538864550,13.12987644,191.47,191.41,4.06327957]
[1735538864847,13.12987644,191.47,191.42,4.06327957]
[1735538865053,2.6173,191.45,191.39,2.618]
[1735538865344,13.12987644,191.47,191.4,4.06411529]
[1735538865543,13.12987644,191.47,191.41,4.06411529]
[1735538865850,13.12987644,191.47,191.42,4.06411529]
[1735538866148,13.12987644,191.47,191.39,2.618]
[1735538866349,13.12987644,191.47,191.4,4.06478779]
[1735538866651,2.6174,191.44,191.41,4.06496834]
[1735538866851,2.6174,191.44,191.39,2.618]
[1735538867052,2.6174,191.44,191.4,4.06508763]
[1735538867253,2.6174,191.44,191.39,2.618]
[1735538867254,13.12987644,191.47,191.41,4.06508763]
[1735538867449,3.02,191.5,191.35,4.6187]
[1735538867450,13.12987644,191.44,191.35,4.6187]
[1735538867651,13.12987644,191.44,191.36,4.06756924]
[1735538867850,2.6176,191.42,191.37,4.06756924]
[1735538868055,13.12987644,191.44,191.38,4.06350833]
[1735538868350,13.12987644,191.44,191.39,4.06302183]
[1735538868552,13.12987644,191.44,191.35,4.6187]
[1735538868748,13.12987644,191.47,191.36,4.06212727]
[1735538868944,13.12987644,191.47,191.37,4.06212727]
[1735538869148,2.6172,191.45,191.4,2.6178]
[1735538870956,2.6175,191.44,191.39,2.6179]
[1735538871658,13.12987644,191.47,191.35,4.6187]
[1735538871860,13.12987644,191.47,191.37,13.12987644]
[1735538872162,13.12987644,191.47,191.38,4.06175336]
[1735538872354,15.74687644,191.47,191.42,2.6176]
[1735538874460,2.6167,191.49,191.44,2.6173]
[1735538875162,15.74647644,191.5,191.45,2.6172]
[1735538876558,4.1131,191.52,191.46,4.06305683]
[1735538876753,4.1131,191.52,191.41,4.5868]
[1735538876754,4.1131,191.52,191.47,4.06305683]
[1735538876952,4.1131,191.52,191.46,3.02]
[1735538877158,4.1131,191.52,191.47,4.06196378]
[1735538877355,4.1131,191.52,191.46,3.02]
[1735538877559,4.1131,191.52,191.47,4.06217236]
[1735538877864,4.1131,191.52,191.46,3.02]
[1735538878162,4.1131,191.52,191.47,4.06196746]
[1735538878369,4.1131,191.52,191.46,3.02]
[1735538878559,4.1131,191.52,191.48,2.6168]
[1735538880366,4.1131,191.52,191.46,3.02]
[1735538880667,4.1131,191.52,191.47,6.6766463]
[1735538880668,2.6164,191.51,191.47,6.6766463]
[1735538880865,2.6164,191.51,191.47,2.6169]
[1735538881665,1.4967,191.52,191.47,2.6169]
[1735538881863,4.113,191.52,191.47,2.6169]
[1735538884756,1.4967,191.52,191.46,3.02]
[1735538885265,1.4967,191.52,191.47,4.05809905]
[1735538885465,1.4967,191.52,191.46,3.02]
[1735538885666,1.4967,191.52,191.47,4.05821869]
[1735538885867,4.1131,191.52,191.47,2.6169]
[1735538886368,2.6168,191.49,191.45,3.02]
[1735538888062,2.6165,191.51,191.46,6.67651949]
[1735538888263,2.6165,191.51,191.46,2.617]
[1735538888768,2.6166,191.5,191.45,5.6372]
[1735538888964,2.6166,191.5,191.46,4.05959848]
[1735538889164,2.6166,191.5,191.45,5.6372]
[1735538889368,2.6166,191.5,191.46,4.05959848]
[1735538889564,2.6166,191.5,191.45,5.6372]
[1735538889868,1.4967,191.52,191.46,4.05973821]
[1735538890168,2.6167,191.49,191.45,5.6372]
[1735538890361,8.40083216,191.48,191.45,5.6372]
[1735538890566,2.617,191.47,191.45,3.02]
[1735538890869,8.40083216,191.46,191.43,3.02]
[1735538891068,8.40083216,191.46,191.44,4.06039482]
[1735538891267,8.40083216,191.46,191.45,4.06039482]
[1735538895960,11.01793216,191.46,191.45,4.06039482]
[1735538896265,8.40083216,191.46,191.38,3.02]
[1735538896471,8.40083216,191.43,191.39,4.06478811]
[1735538896671,1.4967,191.52,191.4,4.06478811]
[1735538896672,8.40083216,191.41,191.4,4.06478811]
[1735538896868,8.40083216,191.41,191.4,4.06491913]
[1735538900173,2.6181,191.39,191.35,2.6186]
[1735538900473,8.40083216,191.37,191.34,3.02]
[1735538900773,8.40083216,191.37,191.36,4.06462839]
[1735538901977,8.40083216,191.37,191.33,2.6188]
[1735538902174,8.40083216,191.37,191.34,4.06431069]
[1735538902473,8.40083216,191.37,191.33,2.6188]
[1735538902672,8.40083216,191.37,191.34,4.06232239]
[1735538902873,8.40083216,191.37,191.33,2.6188]
[1735538903072,8.40083216,191.37,191.34,4.06235037]
[1735538903274,8.40083216,191.37,191.33,2.6188]
[1735538903473,8.40083216,191.37,191.34,4.06060676]
[1735538903674,8.40083216,191.37,191.33,2.6188]
[1735538903874,8.40083216,191.37,191.34,4.06077074]
[1735538904071,8.40083216,191.37,191.33,2.6188]
[1735538904267,1.5042,191.45,191.34,4.0615616]
[1735538904475,8.40083216,191.38,191.35,4.05971083]
[1735538904673,8.40083216,191.38,191.32,13.83766063]
[1735538904871,8.40083216,191.38,191.33,4.06008088]
[1735538905071,8.40083216,191.38,191.35,2.6185]
[1735538905271,8.40083216,191.38,191.32,13.83766063]
[1735538905475,8.40083216,191.38,191.33,4.05932081]
[1735538905771,8.40083216,191.38,191.34,4.05932081]
[1735538905968,8.40083216,191.38,191.35,4.05932081]
[1735538906173,8.40083216,191.38,191.32,5.43682847]
[1735538906373,8.40083216,191.38,191.33,4.06032291]
[1735538906573,11.01903216,191.38,191.34,4.06032291]
[1735538906777,11.01903216,191.38,191.35,4.06032291]
[1735538906981,11.01903216,191.38,191.33,2.6187]
[1735538907182,11.01903216,191.38,191.34,4.06065447]
[1735538907480,11.01903216,191.38,191.35,4.06065447]
[1735538907678,11.01903216,191.38,191.33,2.6187]
[1735538907875,11.01903216,191.38,191.34,4.06074276]
[1735538908074,11.01903216,191.38,191.35,4.06074276]
[1735538908273,11.01903216,191.38,191.33,2.6187]
[1735538908471,11.01903216,191.38,191.34,4.06029916]
[1735538908687,11.01903216,191.38,191.35,4.06029916]
[1735538908977,11.01903216,191.38,191.33,2.6187]
[1735538909483,11.01903216,191.38,191.34,4.06088429]
[1735538909681,11.01903216,191.38,191.33,2.6187]
[1735538909880,11.01903216,191.38,191.35,4.06030775]
[1735538910079,11.01903216,191.38,191.33,2.6187]
[1735538910279,11.01903216,191.38,191.34,4.06029468]
[1735538910479,11.01903216,191.38,191.33,2.6187]
[1735538910677,11.01903216,191.38,191.34,4.06026424]
[1735538910881,8.40083216,191.36,191.33,2.6187]
[1735538911080,8.40083216,191.36,191.34,4.06025163]
[1735538911385,8.40083216,191.36,191.33,2.6187]
[1735538911587,8.40083216,191.36,191.34,4.05952731]
[1735538911883,8.40083216,191.36,191.33,2.6187]
[1735538912081,8.40083216,191.36,191.34,4.06010638]
[1735538912279,8.40083216,191.36,191.33,2.6187]
[1735538914181,8.40083216,191.36,191.31,3.02]
[1735538914386,8.40083216,191.36,191.32,6.67837943]
[1735538914588,1.5042,191.45,191.33,4.05937943]
[1735538914785,1.5042,191.45,191.36,2.6184]
[1735538914979,8.40083216,191.39,191.36,2.6184]
[1735538917088,2.6179,191.4,191.36,2.6184]
[1735538917387,8.40083216,191.39,191.36,2.6184]
[1735538917589,8.40083216,191.39,191.38,2.6182]
[1735538917789,8.40083216,191.39,191.33,8.40083216]
[1735538917989,8.40083216,191.39,191.34,4.05478696]
[1735538918189,8.40083216,191.39,191.35,4.05478696]
[1735538918388,8.40083216,191.39,191.33,8.40083216]
[1735538918789,8.40083216,191.39,191.34,4.05474003]
[1735538918993,8.40083216,191.39,191.35,4.05474003]
[1735538919289,8.40083216,191.39,191.33,8.40083216]
[1735538919492,8.40083216,191.39,191.37,2.6183]
[1735538921994,8.40083216,191.43,191.37,8.40083216]
[1735538923091,8.40083216,191.43,191.38,4.05441043]
[1735538923294,8.40083216,191.43,191.37,8.40083216]
[1735538923491,8.40083216,191.43,191.38,4.05442096]
[1735538923698,8.40083216,191.43,191.39,4.05442096]
[1735538923893,8.40083216,191.43,191.37,10.02763216]
[1735538924196,8.40083216,191.43,191.4,2.6178]
[1735538925999,12.52233216,191.45,191.4,2.6178]
[1735538928091,8.40083216,191.43,191.4,2.6178]
[1735538928293,8.40083216,191.41,191.3,30.37857874]
[1735538928600,8.40083216,191.41,191.34,8.40083216]
[1735538928800,8.40083216,191.41,191.35,4.05566426]
[1735538929101,8.40083216,191.39,191.36,4.05566426]
[1735538929301,8.40083216,191.39,191.37,4.05566426]
[1735538929494,8.40083216,191.39,191.34,3.0]
[1735538929694,8.40083216,191.39,191.35,4.05774204]
[1735538929890,8.40083216,191.39,191.36,4.05774204]
[1735538930098,8.40083216,191.37,191.32,2.6189]
[1735538930298,8.40083216,191.37,191.33,4.05921553]
[1735538930603,8.40083216,191.37,191.34,4.05921553]
[1735538930802,8.40083216,191.37,191.35,4.05921553]
[1735538931006,8.40083216,191.37,191.32,5.6189]
[1735538931197,11.01923216,191.37,191.33,4.06051138]
[1735538931502,11.01923216,191.37,191.34,4.06051138]
[1735538931805,11.01923216,191.37,191.35,4.06051138]
[1735538932096,2.6186,191.36,191.32,3.0]
[1735538932303,2.6186,191.36,191.33,4.06199871]
[1735538932492,2.6186,191.36,191.34,4.06199871]
[1735538932699,2.6186,191.36,191.32,3.0]
[1735538932891,2.6186,191.36,191.33,4.06244176]
[1735538933093,2.6186,191.36,191.34,4.06244176]
[1735538933297,2.6186,191.36,191.32,3.0]
[1735538933594,2.6186,191.36,191.33,4.06311262]
[1735538933795,2.6186,191.36,191.34,4.06311262]
[1735538934000,2.6186,191.36,191.32,3.0]
[1735538934301,2.6186,191.36,191.33,4.06312668]
[1735538934604,2.6186,191.36,191.34,4.06312668]
[1735538934804,2.6186,191.36,191.32,5.619]
[1735538934999,2.6186,191.36,191.33,4.06401025]
[1735538935198,2.6186,191.36,191.32,5.619]
[1735538935199,2.6186,191.36,191.34,4.06401025]
[1735538935501,2.6186,191.36,191.32,5.619]
[1735538935698,2.6186,191.36,191.33,4.06492796]
[1735538935893,2.6186,191.36,191.34,4.06492796]
[1735538936096,2.6186,191.36,191.32,5.619]
[1735538936294,2.6186,191.36,191.33,4.0648589]
[1735538936494,2.6186,191.36,191.34,4.0648589]
[1735538936698,2.6186,191.36,191.32,5.619]
[1735538936898,11.01913216,191.37,191.33,4.06568756]
[1735538937202,8.40083216,191.4,191.34,4.06568756]
[1735538937407,8.40083216,191.4,191.35,4.06568756]
[1735538937603,8.40083216,191.4,191.36,4.06568756]
[1735538937800,11.01873216,191.4,191.37,4.0656926]
[1735538937995,11.01873216,191.4,191.35,2.6186]
[1735538938198,11.01873216,191.4,191.36,4.06571962]
[1735538938405,11.01873216,191.4,191.37,4.06571962]
[1735538938603,11.01873216,191.4,191.38,4.06571962]
[1735538938804,11.01873216,191.4,191.35,2.6186]
[1735538939005,11.01873216,191.4,191.36,4.0671382]
[1735538939203,11.01873216,191.4,191.37,4.0671382]
[1735538939407,11.01873216,191.4,191.38,4.0671382]
[1735538939597,11.01873216,191.4,191.36,2.6183]
[1735538939801,11.01873216,191.4,191.37,4.06848838]
[1735538940002,11.01873216,191.4,191.38,4.06848838]
[1735538940201,11.01873216,191.4,191.36,2.6183]
[1735538940402,11.01873216,191.4,191.37,4.06943345]
[1735538940602,11.01873216,191.4,191.38,4.06943345]
[1735538940803,11.01873216,191.4,191.39,4.06943345]
[1735538941011,11.01873216,191.4,191.39,4.07163444]
[1735538941407,8.40083216,191.42,191.39,4.07163444]
[1735538941607,8.40083216,191.42,191.4,4.07163444]
[1735538941810,8.40083216,191.42,191.37,11.40083216]
[1735538942008,8.40083216,191.42,191.39,2.618]
[1735538942302,8.40083216,191.42,191.4,4.0717863]
[1735538942508,8.40083216,191.42,191.41,4.0717863]
[1735538943009,8.40083216,191.42,191.37,3.0]
[1735538943306,1.5042,191.45,191.38,4.07251959]
[1735538943307,8.40083216,191.4,191.38,4.07251959]
[1735538943508,8.40083216,191.4,191.39,4.07251959]
[1735538944506,11.01873216,191.4,191.39,4.07251959]
[1735538945504,11.01873216,191.4,191.39,4.07390529]
[1735538946010,11.01873216,191.4,191.39,4.07337855]
[1735538947312,2.6179,191.4,191.39,4.07337855]
[1735538947507,11.01873216,191.4,191.39,4.07337855]
[1735538947714,11.01873216,191.4,191.39,4.07041586]
[1735538949114,1.5042,191.45,191.35,2.6185]
[1735538949413,8.40083216,191.41,191.36,6.68894133]
[1735538949614,8.40083216,191.41,191.37,4.07054133]
[1735538949809,8.40083216,191.41,191.38,4.07054133]
[1735538950109,2.6179,191.4,191.39,4.07054133]
[1735538950314,8.40083216,191.41,191.3,4.5559]
[1735538950515,2.6186,191.35,191.31,4.07106781]
[1735538950715,2.6186,191.35,191.32,4.07106781]
[1735538951016,2.6186,191.35,191.33,4.07106781]
[1735538951313,2.6186,191.35,191.34,4.07106781]
[1735538951711,8.40083216,191.37,191.34,4.07106781]
[1735538951912,8.40083216,191.37,191.35,4.07106781]
[1735538952112,8.40083216,191.37,191.36,4.07106781]
[1735538952410,2.6182,191.38,191.36,4.07106781]
[1735538952607,8.40083216,191.39,191.37,4.07106781]
[1735538952913,8.40083216,191.42,191.39,2.618]
[1735538953113,8.40083216,191.42,191.4,4.07106781]
[1735538953314,8.40083216,191.42,191.39,2.618]
[1735538953515,2.6176,191.43,191.4,4.06788647]
[1735538953707,8.40083216,191.42,191.39,2.618]
[1735538953914,8.40083216,191.42,191.4,4.0675423]
[1735538954119,4.1215,191.45,191.41,6.6852423]
[1735538954315,9.90503216,191.45,191.42,4.06634571]
[1735538954515,8.40083216,191.45,191.43,4.06634571]
[1735538954715,8.40083216,191.45,191.41,3.0]
[1735538954910,8.40083216,191.45,191.42,4.06529451]
[1735538955120,8.40083216,191.45,191.43,4.06529451]
[1735538955320,8.40083216,191.45,191.41,3.0]
[1735538955520,8.40083216,191.45,191.42,6.68162071]
[1735538955715,8.40083216,191.45,191.43,4.06402071]
[1735538955917,8.40083216,191.45,191.42,2.6176]
[1735538956118,8.40083216,191.45,191.43,4.0646396]
[1735538956318,8.40083216,191.45,191.42,2.6176]
[1735538956518,8.40083216,191.45,191.43,4.06403875]
[1735538956715,8.40083216,191.45,191.42,2.6176]
[1735538957024,8.40083216,191.45,191.43,4.06402666]
[1735538957223,8.40083216,191.45,191.42,2.6176]
[1735538957422,8.40083216,191.45,191.43,4.06351808]
[1735538957722,8.40083216,191.45,191.42,2.6176]
[1735538957924,8.40083216,191.45,191.43,4.06348335]
[1735538958222,8.40083216,191.45,191.42,2.6176]
[1735538958423,8.40083216,191.45,191.43,4.06299746]
[1735538958726,8.40083216,191.45,191.42,2.6176]
[1735538959023,8.40083216,191.45,191.43,4.06314194]
[1735538959215,8.40083216,191.45,191.42,2.6176]
[1735538959422,8.40083216,191.45,191.43,4.06275695]
[1735538959723,8.40083216,191.45,191.42,2.6176]
[1735538960020,8.40083216,191.45,191.43,4.06292631]
[1735538960222,8.40083216,191.45,191.42,2.6176]
[1735538960422,8.40083216,191.45,191.43,4.06253634]
[1735538960624,8.40083216,191.45,191.42,2.6176]
[1735538960822,8.40083216,191.45,191.43,4.0624438]
[1735538961016,11.01803216,191.45,191.41,5.6177]
[1735538961215,11.01803216,191.45,191.42,4.06266662]
[1735538961425,11.01803216,191.45,191.41,5.6177]
[1735538961626,11.01803216,191.45,191.42,4.06251959]
[1735538961827,11.01803216,191.45,191.43,4.06234607]
[1735538962125,11.01803216,191.45,191.41,5.6177]
[1735538962321,11.01803216,191.45,191.42,4.0618209]
[1735538962522,11.01803216,191.45,191.43,4.0618209]
[1735538962822,11.01803216,191.45,191.41,5.6177]
[1735538963024,11.01803216,191.45,191.42,4.06171646]
[1735538963222,11.01803216,191.45,191.43,4.06171646]
[1735538963420,11.01803216,191.45,191.41,5.6177]
[1735538963623,11.01803216,191.45,191.42,4.06123622]
[1735538963925,11.01803216,191.45,191.43,4.06123622]
[1735538964121,11.01803216,191.45,191.41,5.6177]
[1735538964317,11.01803216,191.45,191.42,4.06080331]
[1735538964525,11.01803216,191.45,191.43,4.06080331]
[1735538964825,11.01803216,191.45,191.41,5.6177]
[1735538965026,11.01803216,191.45,191.42,4.05918869]
[1735538965226,11.01803216,191.45,191.43,4.05918869]
[1735538965430,11.01803216,191.45,191.41,5.6177]
[1735538965622,11.01803216,191.45,191.42,4.05829539]
[1735538965819,11.01803216,191.45,191.41,5.6177]
[1735538965820,11.01803216,191.45,191.43,4.05829539]
[1735538966027,11.01803216,191.45,191.41,5.6177]
[1735538966226,11.01803216,191.45,191.42,4.05757021]
[1735538966425,11.01803216,191.45,191.43,4.05757021]
[1735538966627,11.01803216,191.45,191.41,5.6177]